bitfinex/quotes_SOLUSD_20220113
["timestamp","ask_amount","ask_price","bid_price","bid_amount"]
[1642039897314,9.5,149.74,149.69,0.26]
[1642039897513,9.5,149.74,149.7,2.67]
[1642039897716,9.5,149.74,149.7,2.92]
[1642039899624,9.5,149.74,149.71,0.26]
[1642039899918,9.5,149.74,149.72,3.31588975]
[1642039900518,9.5,149.74,149.73,26.04388757]
[1642039902421,9.5,149.74,149.72,3.31588975]
[1642039902622,12.24851018,149.74,149.69,6.0]
[1642039902823,0.26,149.73,149.67,26.5623]
[1642039903022,9.76,149.73,149.67,2.67]
[1642039903222,10.01,149.73,149.67,2.67]
[1642039903422,10.01,149.73,149.67,27.94919409]
[1642039903823,10.01,149.73,149.67,28.19919409]
[1642039904023,10.01,149.73,149.67,25.52919409]
[1642039906033,9.75,149.73,149.67,25.27919409]
[1642039906228,9.5,149.73,149.68,2.932]
[1642039906428,9.5,149.73,149.68,8.932]
[1642039906629,9.5,149.73,149.68,9.182]
[1642039906831,9.5,149.73,149.68,8.932]
[1642039907030,9.5,149.73,149.69,10.0179]
[1642039907429,9.5,149.73,149.7,0.26]
[1642039907630,9.5,149.73,149.68,25.6771]
[1642039908033,9.5,149.73,149.69,0.26]
[1642039908631,9.75,149.73,149.69,0.26]
[1642039912934,9.75,149.73,149.69,10.2784]
[1642039913137,9.75,149.73,149.69,16.2784]
[1642039913433,9.5,149.73,149.69,16.5284]
[1642039914235,9.5,149.73,149.7,2.67]
[1642039914438,9.5,149.73,149.71,3.03219996]
[1642039914634,9.5,149.73,149.72,29.28368979]
[1642039915638,12.24851018,149.73,149.72,29.0]
[1642039917037,9.5,149.73,149.72,29.28368979]
[1642039917837,9.5,149.73,149.72,35.28368979]
[1642039918037,9.5,149.73,149.72,29.0]
[1642039918439,22.9201,149.76,149.72,29.0]
[1642039918440,1.81107696,149.77,149.72,56.28368979]
[1642039918640,1.81107696,149.77,149.73,27.58725222]
[1642039918840,1.81107696,149.77,149.73,33.84725222]
[1642039919040,1.81107696,149.77,149.73,34.09725222]
[1642039919242,1.81107696,149.77,149.73,34.08725222]
[1642039919443,1.81107696,149.77,149.73,33.57725222]
[1642039919642,1.81107696,149.77,149.73,33.82725222]
[1642039920042,3.71375173,149.8,149.73,33.82725222]
[1642039920043,1.81107696,149.8,149.74,2.67]
[1642039920263,1.81107696,149.8,149.73,36.24725222]
[1642039920468,1.81107696,149.8,149.73,30.25725222]
[1642039920666,1.81107696,149.8,149.73,30.50725222]
[1642039920871,0.26,149.79,149.73,54.98735222]
[1642039921067,0.26,149.79,149.73,52.31735222]
[1642039921867,0.26,149.8,149.73,62.33305222]
[1642039922266,0.26,149.8,149.73,62.58305222]
[1642039923568,0.26,149.8,149.74,10.275]
[1642039923770,11.56107696,149.81,149.74,10.525]
[1642039924070,11.31107696,149.81,149.74,10.525]
[1642039924370,13.36585364,149.81,149.74,10.275]
[1642039924772,13.36585364,149.81,149.74,10.525]
[1642039925170,11.55477668,149.81,149.74,10.525]
[1642039925370,11.55477668,149.81,149.74,13.195]
[1642039925570,6.26,149.8,149.74,13.195]
[1642039925974,0.26,149.8,149.74,13.195]
[1642039928174,0.26,149.8,149.74,12.945]
[1642039928374,0.26,149.8,149.74,13.195]
[1642039928776,9.5,149.81,149.74,13.195]
[1642039928977,9.75,149.81,149.74,13.195]
[1642039929576,9.5,149.81,149.74,13.195]
[1642039930678,6.0,149.8,149.74,13.195]
[1642039930981,9.5,149.81,149.74,13.195]
[1642039931180,6.0,149.8,149.74,12.945]
[1642039931978,9.5,149.81,149.74,12.945]
[1642039932279,9.75,149.81,149.74,12.945]
[1642039933080,9.75,149.81,149.74,2.67]
[1642039933279,2.93,149.8,149.74,2.67]
[1642039933479,9.5,149.79,149.74,2.67]
[1642039933684,2.67,149.78,149.69,22.6933]
[1642039933881,9.5,149.77,149.69,22.6933]
[1642039934079,9.5,149.77,149.7,28.1831996]
[1642039934279,9.75,149.77,149.7,28.1831996]
[1642039934481,9.75,149.77,149.71,0.26]
[1642039935281,9.5,149.77,149.71,0.26]
[1642039935581,9.5,149.77,149.71,10.277]
[1642039935782,9.5,149.77,149.72,2.67]
[1642039936186,9.5,149.77,149.72,2.92]
[1642039936383,9.5,149.77,149.73,0.26]
[1642039939386,9.5,149.77,149.73,6.26]
[1642039939586,9.5,149.77,149.74,6.0]
[1642039940190,9.5,149.77,149.75,3.31588975]
[1642039943089,2.74851018,149.76,149.75,3.31588975]
[1642039943290,9.5,149.77,149.75,3.31588975]
[1642039948025,9.5,149.77,149.75,5.98588975]
[1642039948825,9.5,149.77,149.76,23.45311912]
[1642039949025,9.5,149.8,149.76,23.45311912]
[1642039949227,9.76,149.8,149.76,23.45311912]
[1642039953230,9.76,149.8,149.76,26.12311912]
[1642039955133,9.76,149.8,149.76,26.37311912]
[1642039956039,9.76,149.8,149.76,26.12311912]
[1642039956644,9.76,149.8,149.76,26.37311912]
[1642039957237,9.76,149.8,149.76,2.92]
[1642039959241,9.76,149.8,149.76,0.25]
[1642039959442,9.76,149.8,149.75,34.9122]
[1642039960743,9.5,149.8,149.76,0.26]
[1642039960945,9.5,149.8,149.76,6.26]
[1642039961144,9.5,149.8,149.76,6.51]
[1642039961344,9.5,149.8,149.76,0.51]
[1642039961546,9.5,149.8,149.76,6.51]
[1642039962150,9.5,149.8,149.76,9.18]
[1642039962546,9.5,149.8,149.76,19.1936]
[1642039963147,11.31107696,149.83,149.76,16.5236]
[1642039963351,11.31107696,149.83,149.77,92.04]
[1642039963546,1.81107696,149.83,149.78,16.0119]
[1642039963747,1.81107696,149.83,149.78,83.3419]
[1642039964750,1.81107696,149.87,149.78,83.3419]
[1642039965046,1.81107696,149.87,149.82,10.0094]
[1642039965272,1.81107696,149.87,149.82,10.2594]
[1642039965470,1.81107696,149.87,149.83,0.26]
[1642039965670,9.5,149.88,149.83,0.26]
[1642039965870,9.75,149.88,149.82,0.25]
[1642039966071,0.26,149.87,149.82,0.25]
[1642039966571,0.26,149.87,149.81,27.3059]
[1642039967279,2.669,149.86,149.81,24.3869]
[1642039967472,2.669,149.86,149.82,0.26]
[1642039967674,9.5,149.87,149.82,0.26]
[1642039968676,9.5,149.87,149.82,10.2696]
[1642039968976,9.5,149.87,149.82,10.5196]
[1642039969976,9.5,149.87,149.83,6.0]
[1642039970178,9.5,149.87,149.83,6.25]
[1642039970377,9.5,149.87,149.84,0.26]
[1642039970576,9.5,149.87,149.85,3.31588975]
[1642039970778,9.5,149.87,149.86,29.41557249]
[1642039971278,9.5,149.87,149.86,29.67557249]
[1642039972778,9.5,149.87,149.86,29.92557249]
[1642039973478,9.0,149.87,149.86,29.67557249]
[1642039976681,9.0,149.87,149.86,6.26]
[1642039976884,9.0,149.87,149.86,0.26]
[1642039977483,9.0,149.87,149.86,6.26]
[1642039977682,9.0,149.87,149.86,32.53614801]
[1642039978083,9.5,149.91,149.86,26.53614801]
[1642039978283,9.75,149.91,149.86,32.53614801]
[1642039978885,9.75,149.91,149.86,26.53614801]
[1642039981089,9.75,149.91,149.86,0.26]
[1642039981389,9.75,149.91,149.85,0.26]
[1642039981789,9.75,149.91,149.85,6.26]
[1642039987098,9.25,149.91,149.85,6.26]
[1642039988398,0.26,149.9,149.85,6.0]
[1642039988797,9.5,149.89,149.85,6.0]
[1642039991101,9.75,149.89,149.85,6.0]
[1642039992230,9.75,149.89,149.84,6.0]
[1642039992428,9.75,149.89,149.84,6.26]
[1642039992929,0.26,149.88,149.84,6.0]
[1642039993127,0.26,149.88,149.8,2.669]
[1642039993128,9.5,149.87,149.8,2.669]
[1642039993330,2.669,149.86,149.78,4.57424331]
[1642039993528,0.26,149.86,149.79,6.0]
[1642039993728,0.51,149.86,149.8,2.669]
[1642039993928,0.51,149.86,149.8,33.69431285]
[1642039994129,0.51,149.86,149.8,43.70531285]
[1642039994328,9.5,149.87,149.8,43.70531285]
[1642039994528,9.5,149.87,149.81,6.0]
[1642039994928,9.5,149.87,149.82,0.26]
[1642039995629,9.5,149.87,149.82,10.2693]
[1642039995831,9.5,149.87,149.83,6.0]
[1642040002634,9.5,149.87,149.83,16.0089]
[1642040003635,9.5,149.87,149.84,2.669]
[1642040003835,9.5,149.87,149.83,18.6779]
[1642040004335,9.5,149.87,149.83,8.669]
[1642040005135,9.5,149.87,149.83,8.919]
[1642040005335,9.5,149.87,149.83,6.25]
[1642040006839,9.5,149.87,149.83,8.919]
[1642040008842,9.5,149.87,149.83,18.928]
[1642040010446,7.32107696,149.9,149.84,65.0]
[1642040010646,3.71375173,149.94,149.86,76.8267]
[1642040011044,3.71375173,149.94,149.87,6.26]
[1642040011244,9.5,149.98,149.88,2.668]
[1642040011245,3.71375173,149.95,149.88,2.668]
[1642040011443,3.71375173,149.95,149.89,26.2587399]
[1642040011644,3.71375173,149.95,149.9,2.668]
[1642040012041,9.5,149.98,149.9,2.668]
[1642040012042,9.5,149.98,149.91,6.26]
[1642040012243,9.75,149.98,149.91,6.51]
[1642040012443,9.75,149.98,149.91,16.5135]
[1642040012642,0.26,149.97,149.91,16.5135]
[1642040013042,9.75,149.98,149.91,16.5135]
[1642040014343,9.5,149.98,149.91,16.5135]
[1642040014553,9.5,149.98,149.91,83.3335]
[1642040015348,2.666,149.99,149.91,83.3335]
[1642040015548,12.166,150.02,149.92,2.666]
[1642040015747,12.166,150.02,149.96,26.13109796]
[1642040015947,0.26,150.01,149.96,26.13109796]
[1642040016151,0.26,150.01,149.97,6.0]
[1642040016348,12.166,150.02,149.97,12.705]
[1642040016548,3.71375173,150.03,149.97,15.371]
[1642040016752,2.666,150.03,149.97,22.7046]
[1642040016949,2.666,150.03,149.97,12.705]
[1642040017549,2.666,150.03,149.98,0.26]
[1642040017781,9.5,150.04,149.98,0.26]
[1642040018378,9.5,150.04,149.98,10.259]
[1642040018579,9.5,150.04,149.99,6.0]
[1642040019781,2.666,150.03,149.98,0.02]
[1642040019984,9.5,150.02,149.98,0.02]
[1642040020381,2.926,150.01,149.98,0.02]
[1642040020585,2.74851018,150.0,149.98,0.02]
[1642040020983,0.26,149.99,149.98,0.02]
[1642040022582,0.26,149.99,149.98,3.33588975]
[1642040023185,9.5,150.02,149.98,3.33588975]
[1642040025084,9.75,150.02,149.98,3.33588975]
[1642040030290,2.666,150.01,149.98,3.33588975]
[1642040030494,2.74851018,150.0,149.98,0.02]
[1642040030690,2.99851018,150.0,149.98,0.02]
[1642040030890,0.26,149.99,149.98,0.02]
[1642040031894,2.926,149.99,149.98,0.02]
[1642040032097,2.666,149.99,149.98,0.02]
[1642040032297,3.176,149.99,149.98,0.02]
[1642040032597,2.926,149.99,149.98,0.02]
[1642040032998,0.26,149.99,149.98,0.02]
[1642040033197,12.24851018,150.0,149.98,0.02]
[1642040033400,0.26,149.99,149.98,0.02]
[1642040037498,12.49851018,150.0,149.98,0.02]
[1642040037699,2.74851018,150.0,149.98,0.02]
[1642040037900,2.666,150.02,149.99,36.98188975]
[1642040038399,2.666,150.02,150.0,0.26]
[1642040038599,12.166,150.06,150.0,0.26]
[1642040038800,9.5,150.06,150.0,0.26]
[1642040038999,9.5,150.06,150.0,29.62926796]
[1642040040901,9.5,150.06,150.0,39.62696796]
[1642040041103,9.75,150.06,150.0,39.62696796]
[1642040041503,9.75,150.06,150.01,6.0]
[1642040042004,9.75,150.06,150.0,39.62696796]
[1642040042404,9.75,150.06,150.01,6.0]
[1642040043004,9.75,150.06,150.0,39.62696796]
[1642040043407,9.75,150.06,150.01,6.0]
[1642040043605,9.75,150.06,150.0,39.62696796]
[1642040044031,9.75,150.06,150.01,6.0]
[1642040044506,9.75,150.06,150.0,39.62696796]
[1642040044709,9.75,150.06,150.01,6.0]
[1642040046008,9.75,150.06,150.01,0.02]
[1642040046508,9.75,150.06,150.01,6.02]
[1642040046909,9.75,150.06,150.01,0.02]
[1642040047109,9.75,150.06,150.01,2.686]
[1642040053415,9.5,150.06,150.02,0.26]
[1642040054716,9.75,150.06,150.02,0.26]
[1642040054919,9.75,150.06,150.02,10.2563]
[1642040059047,9.5,150.06,150.02,10.2563]
[1642040059246,9.5,150.06,150.03,2.665]
[1642040059444,9.5,150.06,150.04,0.28368979]
[1642040060045,9.5,150.06,150.04,3.31588975]
[1642040061146,9.5,150.06,150.04,3.56588975]
[1642040061349,24.5502,150.1,150.04,3.56588975]
[1642040061547,6.0,150.09,150.05,2.665]
[1642040061747,6.26,150.09,150.05,2.915]
[1642040063152,6.26,150.09,150.05,0.25]
[1642040063552,6.26,150.09,150.04,2.915]
[1642040064150,6.51,150.09,150.04,2.665]
[1642040064352,6.51,150.09,150.02,0.02]
[1642040064552,2.665,150.08,150.02,0.02]
[1642040064752,2.915,150.08,150.02,6.02]
[1642040064953,0.26,150.07,150.02,6.02]
[1642040065152,0.26,150.07,150.02,0.02]
[1642040065352,9.5,150.06,150.02,0.02]
[1642040065553,13.96977668,150.06,150.02,0.02]
[1642040065753,0.26,150.05,150.02,0.02]
[1642040065956,12.24851018,150.04,150.02,0.02]
[1642040066156,12.49851018,150.04,150.02,0.02]
[1642040066353,0.26,150.03,150.02,0.02]
[1642040066555,0.26,150.03,149.99,2.665]
[1642040066753,0.26,150.03,149.96,32.75898001]
[1642040067055,0.26,150.03,149.97,6.0]
[1642040067253,0.26,150.03,149.96,32.75898001]
[1642040067654,0.26,150.03,149.97,6.0]
[1642040067853,0.26,150.03,149.98,2.666]
[1642040069153,0.26,150.03,149.97,25.813]
[1642040072058,0.26,150.03,149.97,26.063]
[1642040072659,0.26,150.03,149.99,0.02]
[1642040072858,9.75,150.04,149.99,0.02]
[1642040073059,15.87975173,150.08,150.0,2.666]
[1642040073258,13.46375173,150.08,150.0,2.666]
[1642040073460,13.46375173,150.08,150.01,0.26]
[1642040073660,16.12875173,150.08,150.0,2.666]
[1642040073858,9.75,150.08,150.0,2.916]
[1642040074060,9.75,150.08,150.0,2.666]
[1642040074859,9.75,150.08,150.0,12.6634]
[1642040075059,9.75,150.08,150.0,2.666]
[1642040075359,19.7484,150.08,150.0,2.666]
[1642040075559,21.55317668,150.08,150.0,2.666]
[1642040075961,21.55317668,150.08,150.0,2.686]
[1642040076162,21.55317668,150.08,150.0,0.02]
[1642040076163,2.665,150.07,150.0,0.02]
[1642040076368,2.665,150.07,150.01,2.666]
[1642040076369,0.26,150.07,150.01,2.666]
[1642040076566,3.175,150.07,150.0,0.02]
[1642040078604,2.915,150.07,150.0,10.2776]
[1642040078801,0.25,150.07,150.0,10.2776]
[1642040079001,0.51,150.07,150.0,10.2776]
[1642040079204,0.26,150.07,150.0,10.2776]
[1642040079403,0.26,150.07,150.0,10.0176]
[1642040079802,4.73077668,150.07,150.0,0.02]
[1642040080006,2.926,150.07,150.0,0.02]
[1642040080205,3.176,150.07,150.0,0.02]
[1642040080605,6.0,150.06,150.0,0.02]
[1642040081005,0.26,150.05,150.0,0.02]
[1642040086009,15.75,150.06,150.0,0.02]
[1642040086210,15.75,150.06,150.0,0.28]
[1642040086409,15.75,150.06,150.0,0.02]
[1642040086611,15.75,150.06,150.0,6.28]
[1642040087012,15.75,150.06,150.0,6.53]
[1642040087211,15.5,150.06,150.0,6.53]
[1642040087411,0.26,150.05,150.0,6.53]
[1642040087812,0.26,150.05,150.0,16.5276]
[1642040088211,0.26,150.05,150.01,2.666]
[1642040088511,0.25,150.06,150.02,30.72865906]
[1642040088710,0.25,150.06,150.02,30.98865906]
[1642040089110,6.0,150.07,150.02,30.72865906]
[1642040089311,6.0,150.07,150.03,2.665]
[1642040089814,0.26,150.06,150.03,2.665]
[1642040090014,0.26,150.06,150.04,3.31588975]
[1642040090414,2.74851018,150.05,150.03,2.665]
[1642040090613,0.26,150.06,150.03,2.665]
[1642040091513,0.26,150.06,150.04,3.31588975]
[1642040091914,2.74851018,150.05,150.02,33.41365906]
[1642040092116,2.74851018,150.05,150.02,2.685]
[1642040092515,0.26,150.04,150.02,2.685]
[1642040092715,0.26,150.04,150.02,0.02]
[1642040092914,0.51,150.05,150.02,0.02]
[1642040093316,2.74851018,150.04,150.02,0.02]
[1642040093515,0.26,150.03,150.02,0.02]
[1642040098453,37.23077668,150.03,150.02,0.02]
[1642040098651,37.48077668,150.03,150.02,0.02]
[1642040098848,35.676,150.03,150.02,0.02]
[1642040099056,12.676,150.03,150.02,0.02]
[1642040099252,22.6777,150.03,150.02,0.02]
[1642040099648,9.75,150.03,150.02,0.02]
[1642040100255,9.5,150.03,150.02,0.02]
[1642040100452,2.74851018,150.04,150.02,0.02]
[1642040100852,9.5,150.06,150.03,3.31588975]
[1642040101051,9.5,150.06,150.03,3.03219996]
[1642040101253,9.5,150.06,150.02,0.02]
[1642040103253,9.75,150.06,150.02,0.02]
[1642040103553,2.925,150.05,150.02,0.02]
[1642040103754,22.6755,150.05,150.02,0.02]
[1642040104555,2.74851018,150.04,150.02,0.02]
[1642040104756,2.99851018,150.04,150.02,0.02]
[1642040105058,2.74851018,150.04,150.02,0.02]
[1642040108460,0.26,150.03,150.02,0.02]
[1642040109968,2.74851018,150.04,150.02,0.02]
[1642040111763,9.5,150.05,150.03,3.31588975]
[1642040112164,9.75,150.05,150.03,3.31588975]
[1642040114065,9.75,150.05,150.02,0.02]
[1642040114866,9.75,150.05,150.03,3.31588975]
[1642040115069,0.26,150.04,150.03,3.31588975]
[1642040115308,0.25,150.05,150.03,3.31588975]
[1642040115669,15.75,150.07,150.03,3.31588975]
[1642040116369,9.5,150.07,150.03,3.33588975]
[1642040117671,9.75,150.07,150.03,3.33588975]
[1642040118471,0.26,150.06,150.03,3.33588975]
[1642040118672,2.74851018,150.05,150.03,0.02]
[1642040119473,2.74851018,150.05,150.03,3.31219996]
[1642040119672,9.5,150.07,150.03,3.05219996]
[1642040119871,9.5,150.07,150.04,0.28368979]
[1642040120071,2.74851018,150.06,150.04,0.28368979]
[1642040120471,2.99851018,150.06,150.04,0.28368979]
[1642040120675,0.26,150.05,150.04,0.28368979]
[1642040120974,0.26,150.05,150.04,3.03219996]
[1642040121472,0.26,150.05,150.04,3.31588975]
[1642040123376,12.415,150.07,150.04,3.31588975]
[1642040123574,9.75,150.07,150.04,3.31588975]
[1642040124373,15.87875173,150.1,150.04,3.31588975]
[1642040124576,6.0,150.09,150.05,0.26]
[1642040124773,6.25,150.09,150.05,2.925]
[1642040125174,6.25,150.09,150.05,22.46991356]
[1642040125573,6.25,150.09,150.06,0.26]
[1642040125773,6.0,150.09,150.06,0.26]
[1642040125976,6.0,150.09,150.07,3.31588975]
[1642040126474,9.5,150.1,150.07,3.31588975]
[1642040127173,9.75,150.1,150.07,3.31588975]
[1642040128274,9.5,150.1,150.08,0.26]
[1642040128476,6.37875173,150.13,150.08,0.26]
[1642040128677,6.62875173,150.13,150.08,0.26]
[1642040128875,3.71375173,150.13,150.07,29.9924]
[1642040129074,3.71375173,150.13,150.08,2.664]
[1642040129278,18.90068042,150.16,150.08,12.906]
[1642040129474,13.21375173,150.16,150.09,29.4]
[1642040129674,13.21375173,150.16,150.1,2.664]
[1642040130073,13.21375173,150.16,150.11,0.26]
[1642040130304,13.21375173,150.16,150.12,2.664]
[1642040130576,9.5,150.2,150.13,44.82006998]
[1642040130775,9.5,150.2,150.13,45.07006998]
[1642040131977,9.5,150.2,150.14,2.662]
[1642040132178,9.5,150.2,150.16,9.987]
[1642040132577,9.5,150.2,150.16,12.649]
[1642040133278,9.5,150.2,150.16,12.899]
[1642040133879,14.05467897,150.24,150.17,10.2457]
[1642040134079,11.39267897,150.24,150.18,2.662]
[1642040134382,2.662,150.23,150.15,2.662]
[1642040134579,9.5,150.22,150.14,23.1147]
[1642040134879,11.30477668,150.22,150.14,22.8647]
[1642040135078,10.2496,150.21,150.14,22.8647]
[1642040135281,2.662,150.2,150.13,34.57156998]
[1642040135482,0.26,150.19,150.13,34.57156998]
[1642040136182,0.26,150.2,150.13,34.57156998]
[1642040137082,0.26,150.2,150.13,34.82156998]
[1642040137282,12.6616,150.21,150.14,24.0]
[1642040137482,0.26,150.2,150.14,24.0]
[1642040137681,12.6616,150.21,150.14,24.25]
[1642040137682,4.46677668,150.21,150.14,24.25]
[1642040137883,12.162,150.22,150.18,0.02]
[1642040138082,9.5,150.22,150.18,0.02]
[1642040139282,9.5,150.22,150.18,2.682]
[1642040139481,9.5,150.22,150.19,30.52076594]
[1642040139683,9.5,150.22,150.2,3.31588975]
[1642040141182,9.75,150.22,150.2,3.31588975]
[1642040142883,9.5,150.22,150.2,3.31588975]
[1642040147488,9.5,150.22,150.2,3.33588975]
[1642040153317,0.26,150.21,150.2,3.33588975]
[1642040153517,6.26,150.21,150.2,3.33588975]
[1642040153821,6.51,150.21,150.2,0.02]
[1642040154220,6.25,150.21,150.2,0.02]
[1642040154517,9.5,150.22,150.2,0.02]
[1642040155018,12.24851018,150.22,150.2,0.02]
[1642040155418,9.5,150.22,150.21,3.31588975]
[1642040156018,9.5,150.22,150.21,3.03219996]
[1642040156222,12.24851018,150.22,150.2,0.02]
[1642040157020,12.49851018,150.22,150.2,0.02]
[1642040157921,0.26,150.21,150.2,0.02]
[1642040159921,2.15267897,150.21,150.2,0.02]
[1642040160322,1.89267897,150.21,150.2,0.02]
[1642040161533,14.14118915,150.22,150.2,0.02]
[1642040161934,14.39118915,150.22,150.2,0.02]
[1642040162332,14.14118915,150.22,150.2,0.02]
[1642040162933,14.14118915,150.22,150.2,0.30368979]
[1642040163636,14.39118915,150.22,150.2,0.30368979]
[1642040163835,14.39118915,150.22,150.2,0.02]
[1642040166246,1.89267897,150.21,150.2,0.02]
[1642040169951,1.89267897,150.21,150.2,3.33588975]
[1642040171150,2.40267897,150.21,150.2,0.02]
[1642040171351,13.70745565,150.21,150.2,0.02]
[1642040171572,35.70745565,150.21,150.2,0.02]
[1642040171778,45.69665565,150.21,150.2,0.02]
[1642040171980,51.69665565,150.21,150.2,0.02]
[1642040172178,49.80397668,150.21,150.2,0.02]
[1642040172978,43.80397668,150.21,150.2,0.02]
[1642040173180,43.1248,150.21,150.2,0.02]
[1642040174582,42.8648,150.21,150.2,0.02]
[1642040174782,42.6148,150.21,150.2,0.02]
[1642040176085,44.5166371,150.21,150.2,0.02]
[1642040176284,44.7666371,150.21,150.2,0.02]
[1642040177386,45.0266371,150.21,150.2,0.02]
[1642040181191,43.1248,150.21,150.2,0.02]
[1642040187100,33.1356,150.21,150.2,0.02]
[1642040188906,9.75,150.21,150.2,0.02]
[1642040189105,9.5,150.21,150.2,0.02]
[1642040190108,11.40264528,150.21,150.2,0.02]
[1642040190939,11.65264528,150.21,150.2,0.02]
[1642040191535,11.91264528,150.21,150.2,0.02]
[1642040191937,21.90144528,150.21,150.2,0.02]
[1642040194640,27.90144528,150.21,150.2,0.02]
[1642040194841,21.90144528,150.21,150.2,0.02]
[1642040195044,27.90144528,150.21,150.2,0.02]
[1642040198242,29.70622196,150.21,150.2,0.02]
[1642040198442,27.80357668,150.21,150.2,0.02]
[1642040199445,19.7388,150.21,150.2,0.02]
[1642040200844,21.64138517,150.21,150.2,0.02]
[1642040201746,21.90138517,150.21,150.2,0.02]
[1642040203147,21.64138517,150.21,150.2,0.02]
[1642040206452,21.90138517,150.21,150.2,0.02]
[1642040211959,19.9988,150.21,150.2,0.02]
[1642040216063,21.90138517,150.21,150.2,0.02]
[1642040216864,11.40258517,150.21,150.2,0.02]
[1642040218067,9.5,150.21,150.2,0.02]
[1642040218466,9.75,150.21,150.2,0.02]
[1642040218666,10.01,150.21,150.2,0.02]
[1642040220567,19.9985,150.21,150.2,0.02]
[1642040220769,19.7385,150.21,150.2,0.02]
[1642040221069,21.54327668,150.21,150.2,0.02]
[1642040222070,23.44586185,150.21,150.2,0.02]
[1642040222268,23.70586185,150.21,150.2,0.02]
[1642040222469,21.90108517,150.21,150.2,0.02]
[1642040222669,11.91258517,150.21,150.2,0.02]
[1642040223270,11.66258517,150.21,150.2,0.02]
[1642040223869,21.39118517,150.21,150.2,0.02]
[1642040224099,27.29337668,150.21,150.2,0.02]
[1642040224701,27.54337668,150.21,150.2,0.02]
[1642040224899,21.54337668,150.21,150.2,0.02]
[1642040225299,21.80337668,150.21,150.2,0.02]
[1642040226100,43.9766,150.21,150.2,0.02]
[1642040226502,49.9766,150.21,150.2,0.02]
[1642040226703,43.9766,150.21,150.2,0.02]
[1642040226901,45.78137668,150.21,150.2,0.02]
[1642040233113,51.78137668,150.21,150.2,0.02]
[1642040233516,54.44437668,150.21,150.2,0.02]
[1642040234518,51.53137668,150.21,150.2,0.02]
[1642040235718,61.67137668,150.21,150.2,0.02]
[1642040235918,61.92137668,150.21,150.2,0.02]
[1642040236118,61.67137668,150.21,150.2,0.02]
[1642040237720,61.92137668,150.21,150.2,0.02]
[1642040238520,51.78137668,150.21,150.2,0.02]
[1642040239219,49.9766,150.21,150.2,0.02]
[1642040239419,43.9766,150.21,150.2,0.02]
[1642040239620,45.87837498,150.21,150.2,0.02]
[1642040242851,45.61837498,150.21,150.2,0.02]
[1642040244122,43.7166,150.21,150.2,0.02]
[1642040244323,43.4666,150.21,150.2,0.02]
[1642040244723,43.7266,150.21,150.2,0.02]